Workbook

Sheet РА
B2: К прогнозу на 2026-2028 годы по Республике Адыгея
M4: раздел ПОТРЕБИТЕЛЬСКИЙ РЫНОК
B9: Единица измерения | C9: Код | D9: Доп. Код | E9: Код отрасли | F9: Форма собственности | G9: Измерение | H9: отчет | N9: оценка | O9: прогноз
H10: 1998 | I10: 1999 | J10: 2000 | K10: 2001 | L10: 2023 год | M10: 2024 год | N10: 2025 год | O10: 2026 год | Q10: 2027 год | S10: 2028 год
O11: вариант 1 | P11: вариант 2 | Q11: вариант 1 | R11: вариант 2 | S11: вариант 1 | T11: вариант 2
A12: 3. Рынок товаров и услуг
A13: Индекс потребительских цен | B13: декабрь к декабрю предыдущего года, % | C13: 1 | G13: 02
A14: Индекс потребительских цен (среднегодовой) | B14: % к предыдущему году | C14: 1 | G14: 02
A15: Оборот розничной торговли | B15: млн. руб. в ценах соответствующих лет | C15: 1 | G15: 04 | L15: =Адыг!L15+Майкоп!L15+Гиаг!L15+Кош!L15+Красн!L15+Майк!L15+Тахт!L15+Теуч!L15+Шовг!L15 -> 0 | M15: =Адыг!M15+Майкоп!M15+Гиаг!M15+Кош!M15+Красн!M15+Майк!M15+Тахт!M15+Теуч!M15+Шовг!M15 -> 0 | N15: =Адыг!N15+Майкоп!N15+Гиаг!N15+Кош!N15+Красн!N15+Майк!N15+Тахт!N15+Теуч!N15+Шовг!N15 -> 0 | O15: =Адыг!O15+Майкоп!O15+Гиаг!O15+Кош!O15+Красн!O15+Майк!O15+Тахт!O15+Теуч!O15+Шовг!O15 -> 0 | Q15: =Адыг!Q15+Майкоп!Q15+Гиаг!R15+Кош!R15+Красн!R15+Майк!R15+Тахт!R15+Теуч!R15+Шовг!R15 -> 0 | S15: =Адыг!S15+Майкоп!S15+Гиаг!U15+Кош!U15+Красн!U15+Майк!U15+Тахт!U15+Теуч!U15+Шовг!U15 -> 0
A16: индекс физического объема оборота розничной торговли | B16: % к предыдущему году | C16: 1 | G16: 02
A17: индекс-дефлятор оборота розничной торговли | B17: % к предыдущему году | C17: 1 | G17: 30
A18: Оборот общественного питания | B18: млн. руб. в ценах соответствующих лет | C18: 1 | G18: 04 | L18: =Адыг!L18+Майкоп!L18+Гиаг!L18+Кош!L18+Красн!L18+Майк!L18+Тахт!L18+Теуч!L18+Шовг!L18 -> 0 | M18: =Адыг!M18+Майкоп!M18+Гиаг!M18+Кош!M18+Красн!M18+Майк!M18+Тахт!M18+Теуч!M18+Шовг!M18 -> 0 | N18: =Адыг!N18+Майкоп!N18+Гиаг!N18+Кош!N18+Красн!N18+Майк!N18+Тахт!N18+Теуч!N18+Шовг!N18 -> 0 | O18: =Адыг!O18+Майкоп!O18+Гиаг!O18+Кош!O18+Красн!O18+Майк!O18+Тахт!O18+Теуч!O18+Шовг!O18 -> 0 | Q18: =Адыг!Q18+Майкоп!Q18+Гиаг!R18+Кош!R18+Красн!R18+Майк!R18+Тахт!R18+Теуч!R18+Шовг!R18 -> 0 | S18: =Адыг!S18+Майкоп!S18+Гиаг!U18+Кош!U18+Красн!U18+Майк!U18+Тахт!U18+Теуч!U18+Шовг!U18 -> 0
A19: индекс физического объема оборота общественного питания | B19: % к предыдущему году | C19: 1 | G19: 02
A20: индекс цен на продукцию общественного питания | B20: % к предыдущему году | C20: 1 | G20: 02
A21: Объем платных услуг населению | B21: млн. руб. в ценах соответствующих лет | C21: 1 | G21: 04 | N21: =M21*N22*N23/100/100 -> 0 | O21: =N21*O22*O23/100/100 -> 0 | Q21: =O21*Q22*Q23/100/100 -> 0 | S21: =Q21*S22*S23*100/100 -> 0
B22: % к предыдущему году в сопоставимых ценах | C22: 1 | G22: 02
A23: индекс-дефлятор по платным услугам | B23: % к предыдущему году | C23: 1 | G23: 30
A26: Макухина Людмила Александровна, 52-51-10

Sheet Адыг
B2: К прогнозу на 2026-2028 годы по Республике Адыгея
M4: раздел ПОТРЕБИТЕЛЬСКИЙ РЫНОК
B9: Единица измерения | C9: Код | D9: Доп. Код | E9: Код отрасли | F9: Форма собственности | G9: Измерение | H9: отчет | N9: оценка | O9: прогноз
H10: 1998 | I10: 1999 | J10: 2000 | K10: 2001 | L10: 2023 год | M10: 2024 год | N10: 2025 год | O10: 2026 год | Q10: 2027 год | S10: 2028 год
O11: вариант 1 | P11: вариант 2 | Q11: вариант 1 | R11: вариант 2 | S11: вариант 1 | T11: вариант 2
A12: 3. Рынок товаров и услуг
A13: Индекс потребительских цен | B13: декабрь к декабрю предыдущего года, % | C13: 1 | G13: 02
A14: Индекс потребительских цен (среднегодовой) | B14: % к предыдущему году | C14: 1 | G14: 02
A15: Оборот розничной торговли | B15: млн. руб. в ценах соответствующих лет | C15: 1 | G15: 04 | L15: =Адыг!L15+Майкоп!L15+Гиаг!L15+Кош!L15+Красн!L15+Майк!L15+Тахт!L15+Теуч!L15+Шовг!L15 -> 0 | M15: =Адыг!M15+Майкоп!M15+Гиаг!M15+Кош!M15+Красн!M15+Майк!M15+Тахт!M15+Теуч!M15+Шовг!M15 -> 0 | N15: =Адыг!N15+Майкоп!N15+Гиаг!N15+Кош!N15+Красн!N15+Майк!N15+Тахт!N15+Теуч!N15+Шовг!N15 -> 0 | O15: =Адыг!O15+Майкоп!O15+Гиаг!O15+Кош!O15+Красн!O15+Майк!O15+Тахт!O15+Теуч!O15+Шовг!O15 -> 0 | Q15: =Адыг!Q15+Майкоп!Q15+Гиаг!R15+Кош!R15+Красн!R15+Майк!R15+Тахт!R15+Теуч!R15+Шовг!R15 -> 0 | S15: =Адыг!S15+Майкоп!S15+Гиаг!U15+Кош!U15+Красн!U15+Майк!U15+Тахт!U15+Теуч!U15+Шовг!U15 -> 0
A16: индекс физического объема оборота розничной торговли | B16: % к предыдущему году | C16: 1 | G16: 02
A17: индекс-дефлятор оборота розничной торговли | B17: % к предыдущему году | C17: 1 | G17: 30
A18: Оборот общественного питания | B18: млн. руб. в ценах соответствующих лет | C18: 1 | G18: 04 | L18: =Адыг!L18+Майкоп!L18+Гиаг!L18+Кош!L18+Красн!L18+Майк!L18+Тахт!L18+Теуч!L18+Шовг!L18 -> 0 | M18: =Адыг!M18+Майкоп!M18+Гиаг!M18+Кош!M18+Красн!M18+Майк!M18+Тахт!M18+Теуч!M18+Шовг!M18 -> 0 | N18: =Адыг!N18+Майкоп!N18+Гиаг!N18+Кош!N18+Красн!N18+Майк!N18+Тахт!N18+Теуч!N18+Шовг!N18 -> 0 | O18: =Адыг!O18+Майкоп!O18+Гиаг!O18+Кош!O18+Красн!O18+Майк!O18+Тахт!O18+Теуч!O18+Шовг!O18 -> 0 | Q18: =Адыг!Q18+Майкоп!Q18+Гиаг!R18+Кош!R18+Красн!R18+Майк!R18+Тахт!R18+Теуч!R18+Шовг!R18 -> 0 | S18: =Адыг!S18+Майкоп!S18+Гиаг!U18+Кош!U18+Красн!U18+Майк!U18+Тахт!U18+Теуч!U18+Шовг!U18 -> 0
A19: индекс физического объема оборота общественного питания | B19: % к предыдущему году | C19: 1 | G19: 02
A20: индекс цен на продукцию общественного питания | B20: % к предыдущему году | C20: 1 | G20: 02
A21: Объем платных услуг населению | B21: млн. руб. в ценах соответствующих лет | C21: 1 | G21: 04 | N21: =M21*N22*N23/100/100 -> 0 | O21: =N21*O22*O23/100/100 -> 0 | Q21: =O21*Q22*Q23/100/100 -> 0 | S21: =Q21*S22*S23*100/100 -> 0
B22: % к предыдущему году в сопоставимых ценах | C22: 1 | G22: 02
A23: индекс-дефлятор по платным услугам | B23: % к предыдущему году | C23: 1 | G23: 30
A26: Макухина Людмила Александровна, 52-51-10

Sheet Майкоп
B2: К прогнозу на 2026-2028 годы по Республике Адыгея
M4: раздел ПОТРЕБИТЕЛЬСКИЙ РЫНОК
B9: Единица измерения | C9: Код | D9: Доп. Код | E9: Код отрасли | F9: Форма собственности | G9: Измерение | H9: отчет | N9: оценка | O9: прогноз
H10: 1998 | I10: 1999 | J10: 2000 | K10: 2001 | L10: 2023 год | M10: 2024 год | N10: 2025 год | O10: 2026 год | Q10: 2027 год | S10: 2028 год
O11: вариант 1 | P11: вариант 2 | Q11: вариант 1 | R11: вариант 2 | S11: вариант 1 | T11: вариант 2
A12: 3. Рынок товаров и услуг
A13: Индекс потребительских цен | B13: декабрь к декабрю предыдущего года, % | C13: 1 | G13: 02 | M13: 107.5 | N13: 105.8 | O13: 104 | P13: 104 | Q13: 104 | R13: 104 | S13: 104 | T13: 104
A14: Индекс потребительских цен (среднегодовой) | B14: % к предыдущему году | C14: 1 | G14: 02 | M14: 108.4 | N14: 108 | O14: 105.2 | P14: 105.5 | Q14: 104 | R14: 104 | S14: 104 | T14: 104
A15: Оборот розничной торговли | B15: млн. руб. в ценах соответствующих лет | C15: 1 | G15: 04 | L15: 58016.5 | M15: 75902.9 | N15: =M15*N16*N17/10000 -> 83359.6009 | O15: =N15*O16*O17/10000 -> 87702.6361 | P15: =N15*P16*P17/10000 -> 89294.80448 | Q15: =O15*Q16*Q17/10000 -> 91210.74155 | R15: =P15*R16*R17/10000 -> 93795.26263 | S15: =Q15*S16*S17/10000 -> 94859.17121 | T15: =R15*T16*T17/10000 -> 98034.8085
A16: индекс физического объема оборота розничной торговли | B16: % к предыдущему году | C16: 1 | G16: 02 | M16: 106.5 | N16: 104 | O16: 100.2 | P16: 103 | Q16: 100 | R16: 101 | S16: 100 | T16: 100.5
A17: индекс-дефлятор оборота розничной торговли | B17: % к предыдущему году | C17: 1 | G17: 30 | M17: 108.5 | N17: 105.6 | O17: 105 | P17: 104 | Q17: 104 | R17: 104 | S17: 104 | T17: 104
A18: Оборот общественного питания | B18: млн. руб. в ценах соответствующих лет | C18: 1 | G18: 04 | L18: 2155.07 | M18: 2493 | N18: =M18*N19*N20/10000 -> 2837.40795 | O18: =N18*O19*O20/10000 -> 3017.668477 | P18: =N18*P19*P20/10000 -> 3039.431396 | Q18: =O18*Q19*Q20/10000 -> 3169.758968 | R18: =P18*R19*R20/10000 -> 3271.643955 | S18: =Q18*S19*S20/10000 -> 3329.51482 | T18: =R18*T19*T20/10000 -> 3504.585004
A19: индекс физического объема оборота общественного питания | B19: % к предыдущему году | C19: 1 | G19: 02 | M19: 110.5 | N19: 103 | O19: 101 | P19: 103 | Q19: 101 | R19: 103.5 | S19: 101 | T19: 103
A20: индекс цен на продукцию общественного питания | B20: % к предыдущему году | C20: 1 | G20: 02 | M20: 109.6 | N20: 110.5 | O20: 105.3 | P20: 104 | Q20: 104 | R20: 104 | S20: 104 | T20: 104
A21: Объем платных услуг населению | B21: млн. руб. в ценах соответствующих лет | C21: 1 | G21: 04 | L21: 17403.18 | M21: 23026.7 | N21: =M21*N22*N23/10000 -> 27988.95385 | O21: =N21*O22*O23/10000 -> 29767.09209 | P21: =N21*P22*P23/10000 -> 29981.76736 | Q21: =O21*Q22*Q23/10000 -> 31267.35353 | R21: =P21*R22*R23/10000 -> 32116.4692 | S21: =Q21*S22*S23/10000 -> 32518.04767 | T21: =R21*T22*T23/10000 -> 34403.16181
B22: % к предыдущему году в сопоставимых ценах | C22: 1 | G22: 02 | M22: 110.5 | N22: 110 | O22: 101 | P22: 103 | Q22: 101 | R22: 103 | S22: 100 | T22: 103
A23: индекс-дефлятор по платным услугам | B23: % к предыдущему году | C23: 1 | G23: 30 | M23: 109.6 | N23: 110.5 | O23: 105.3 | P23: 104 | Q23: 104 | R23: 104 | S23: 104 | T23: 104

Sheet Гиаг
B2: К прогнозу на 2026-2028 годы по Республике Адыгея
M4: раздел ПОТРЕБИТЕЛЬСКИЙ РЫНОК
B9: Единица измерения | C9: Код | D9: Доп. Код | E9: Код отрасли | F9: Форма собственности | G9: Измерение | H9: отчет | N9: оценка | O9: прогноз
H10: 1998 | I10: 1999 | J10: 2000 | K10: 2001 | L10: 2023 год | M10: 2024 год | N10: 2025 год | O10: 2026 год | Q10: 2027 год | S10: 2028 год
O11: вариант 1 | P11: вариант 2 | Q11: вариант 1 | R11: вариант 2 | S11: вариант 1 | T11: вариант 2
A12: 3. Рынок товаров и услуг
A13: Индекс потребительских цен | B13: декабрь к декабрю предыдущего года, % | C13: 1 | G13: 02
A14: Индекс потребительских цен (среднегодовой) | B14: % к предыдущему году | C14: 1 | G14: 02
A15: Оборот розничной торговли | B15: млн. руб. в ценах соответствующих лет | C15: 1 | G15: 04 | L15: =Адыг!L15+Майкоп!L15+Гиаг!L15+Кош!L15+Красн!L15+Майк!L15+Тахт!L15+Теуч!L15+Шовг!L15 -> 0 | M15: =Адыг!M15+Майкоп!M15+Гиаг!M15+Кош!M15+Красн!M15+Майк!M15+Тахт!M15+Теуч!M15+Шовг!M15 -> 0 | N15: =Адыг!N15+Майкоп!N15+Гиаг!N15+Кош!N15+Красн!N15+Майк!N15+Тахт!N15+Теуч!N15+Шовг!N15 -> 0 | O15: =Адыг!O15+Майкоп!O15+Гиаг!O15+Кош!O15+Красн!O15+Майк!O15+Тахт!O15+Теуч!O15+Шовг!O15 -> 0 | Q15: =Адыг!Q15+Майкоп!Q15+Гиаг!R15+Кош!R15+Красн!R15+Майк!R15+Тахт!R15+Теуч!R15+Шовг!R15 -> 0 | S15: =Адыг!S15+Майкоп!S15+Гиаг!U15+Кош!U15+Красн!U15+Майк!U15+Тахт!U15+Теуч!U15+Шовг!U15 -> 0
A16: индекс физического объема оборота розничной торговли | B16: % к предыдущему году | C16: 1 | G16: 02
A17: индекс-дефлятор оборота розничной торговли | B17: % к предыдущему году | C17: 1 | G17: 30
A18: Оборот общественного питания | B18: млн. руб. в ценах соответствующих лет | C18: 1 | G18: 04 | L18: =Адыг!L18+Майкоп!L18+Гиаг!L18+Кош!L18+Красн!L18+Майк!L18+Тахт!L18+Теуч!L18+Шовг!L18 -> 0 | M18: =Адыг!M18+Майкоп!M18+Гиаг!M18+Кош!M18+Красн!M18+Майк!M18+Тахт!M18+Теуч!M18+Шовг!M18 -> 0 | N18: =Адыг!N18+Майкоп!N18+Гиаг!N18+Кош!N18+Красн!N18+Майк!N18+Тахт!N18+Теуч!N18+Шовг!N18 -> 0 | O18: =Адыг!O18+Майкоп!O18+Гиаг!O18+Кош!O18+Красн!O18+Майк!O18+Тахт!O18+Теуч!O18+Шовг!O18 -> 0 | Q18: =Адыг!Q18+Майкоп!Q18+Гиаг!R18+Кош!R18+Красн!R18+Майк!R18+Тахт!R18+Теуч!R18+Шовг!R18 -> 0 | S18: =Адыг!S18+Майкоп!S18+Гиаг!U18+Кош!U18+Красн!U18+Майк!U18+Тахт!U18+Теуч!U18+Шовг!U18 -> 0
A19: индекс физического объема оборота общественного питания | B19: % к предыдущему году | C19: 1 | G19: 02
A20: индекс цен на продукцию общественного питания | B20: % к предыдущему году | C20: 1 | G20: 02
A21: Объем платных услуг населению | B21: млн. руб. в ценах соответствующих лет | C21: 1 | G21: 04 | N21: =M21*N22*N23/100/100 -> 0 | O21: =N21*O22*O23/100/100 -> 0 | Q21: =O21*Q22*Q23/100/100 -> 0 | S21: =Q21*S22*S23*100/100 -> 0
B22: % к предыдущему году в сопоставимых ценах | C22: 1 | G22: 02
A23: индекс-дефлятор по платным услугам | B23: % к предыдущему году | C23: 1 | G23: 30
A26: Макухина Людмила Александровна, 52-51-10

Sheet Кош
B2: К прогнозу на 2026-2028 годы по Республике Адыгея
M4: раздел ПОТРЕБИТЕЛЬСКИЙ РЫНОК
B9: Единица измерения | C9: Код | D9: Доп. Код | E9: Код отрасли | F9: Форма собственности | G9: Измерение | H9: отчет | N9: оценка | O9: прогноз
H10: 1998 | I10: 1999 | J10: 2000 | K10: 2001 | L10: 2023 год | M10: 2024 год | N10: 2025 год | O10: 2026 год | Q10: 2027 год | S10: 2028 год
O11: вариант 1 | P11: вариант 2 | Q11: вариант 1 | R11: вариант 2 | S11: вариант 1 | T11: вариант 2
A12: 3. Рынок товаров и услуг
A13: Индекс потребительских цен | B13: декабрь к декабрю предыдущего года, % | C13: 1 | G13: 02
A14: Индекс потребительских цен (среднегодовой) | B14: % к предыдущему году | C14: 1 | G14: 02
A15: Оборот розничной торговли | B15: млн. руб. в ценах соответствующих лет | C15: 1 | G15: 04 | L15: =Адыг!L15+Майкоп!L15+Гиаг!L15+Кош!L15+Красн!L15+Майк!L15+Тахт!L15+Теуч!L15+Шовг!L15 -> 0 | M15: =Адыг!M15+Майкоп!M15+Гиаг!M15+Кош!M15+Красн!M15+Майк!M15+Тахт!M15+Теуч!M15+Шовг!M15 -> 0 | N15: =Адыг!N15+Майкоп!N15+Гиаг!N15+Кош!N15+Красн!N15+Майк!N15+Тахт!N15+Теуч!N15+Шовг!N15 -> 0 | O15: =Адыг!O15+Майкоп!O15+Гиаг!O15+Кош!O15+Красн!O15+Майк!O15+Тахт!O15+Теуч!O15+Шовг!O15 -> 0 | Q15: =Адыг!Q15+Майкоп!Q15+Гиаг!R15+Кош!R15+Красн!R15+Майк!R15+Тахт!R15+Теуч!R15+Шовг!R15 -> 0 | S15: =Адыг!S15+Майкоп!S15+Гиаг!U15+Кош!U15+Красн!U15+Майк!U15+Тахт!U15+Теуч!U15+Шовг!U15 -> 0
A16: индекс физического объема оборота розничной торговли | B16: % к предыдущему году | C16: 1 | G16: 02
A17: индекс-дефлятор оборота розничной торговли | B17: % к предыдущему году | C17: 1 | G17: 30
A18: Оборот общественного питания | B18: млн. руб. в ценах соответствующих лет | C18: 1 | G18: 04 | L18: =Адыг!L18+Майкоп!L18+Гиаг!L18+Кош!L18+Красн!L18+Майк!L18+Тахт!L18+Теуч!L18+Шовг!L18 -> 0 | M18: =Адыг!M18+Майкоп!M18+Гиаг!M18+Кош!M18+Красн!M18+Майк!M18+Тахт!M18+Теуч!M18+Шовг!M18 -> 0 | N18: =Адыг!N18+Майкоп!N18+Гиаг!N18+Кош!N18+Красн!N18+Майк!N18+Тахт!N18+Теуч!N18+Шовг!N18 -> 0 | O18: =Адыг!O18+Майкоп!O18+Гиаг!O18+Кош!O18+Красн!O18+Майк!O18+Тахт!O18+Теуч!O18+Шовг!O18 -> 0 | Q18: =Адыг!Q18+Майкоп!Q18+Гиаг!R18+Кош!R18+Красн!R18+Майк!R18+Тахт!R18+Теуч!R18+Шовг!R18 -> 0 | S18: =Адыг!S18+Майкоп!S18+Гиаг!U18+Кош!U18+Красн!U18+Майк!U18+Тахт!U18+Теуч!U18+Шовг!U18 -> 0
A19: индекс физического объема оборота общественного питания | B19: % к предыдущему году | C19: 1 | G19: 02
A20: индекс цен на продукцию общественного питания | B20: % к предыдущему году | C20: 1 | G20: 02
A21: Объем платных услуг населению | B21: млн. руб. в ценах соответствующих лет | C21: 1 | G21: 04 | N21: =M21*N22*N23/100/100 -> 0 | O21: =N21*O22*O23/100/100 -> 0 | Q21: =O21*Q22*Q23/100/100 -> 0 | S21: =Q21*S22*S23*100/100 -> 0
B22: % к предыдущему году в сопоставимых ценах | C22: 1 | G22: 02
A23: индекс-дефлятор по платным услугам | B23: % к предыдущему году | C23: 1 | G23: 30
A26: Макухина Людмила Александровна, 52-51-10

Sheet Красн
B2: К прогнозу на 2026-2028 годы по Республике Адыгея
M4: раздел ПОТРЕБИТЕЛЬСКИЙ РЫНОК
B9: Единица измерения | C9: Код | D9: Доп. Код | E9: Код отрасли | F9: Форма собственности | G9: Измерение | H9: отчет | N9: оценка | O9: прогноз
H10: 1998 | I10: 1999 | J10: 2000 | K10: 2001 | L10: 2023 год | M10: 2024 год | N10: 2025 год | O10: 2026 год | Q10: 2027 год | S10: 2028 год
O11: вариант 1 | P11: вариант 2 | Q11: вариант 1 | R11: вариант 2 | S11: вариант 1 | T11: вариант 2
A12: 3. Рынок товаров и услуг
A13: Индекс потребительских цен | B13: декабрь к декабрю предыдущего года, % | C13: 1 | G13: 02
A14: Индекс потребительских цен (среднегодовой) | B14: % к предыдущему году | C14: 1 | G14: 02
A15: Оборот розничной торговли | B15: млн. руб. в ценах соответствующих лет | C15: 1 | G15: 04 | L15: =Адыг!L15+Майкоп!L15+Гиаг!L15+Кош!L15+Красн!L15+Майк!L15+Тахт!L15+Теуч!L15+Шовг!L15 -> 0 | M15: =Адыг!M15+Майкоп!M15+Гиаг!M15+Кош!M15+Красн!M15+Майк!M15+Тахт!M15+Теуч!M15+Шовг!M15 -> 0 | N15: =Адыг!N15+Майкоп!N15+Гиаг!N15+Кош!N15+Красн!N15+Майк!N15+Тахт!N15+Теуч!N15+Шовг!N15 -> 0 | O15: =Адыг!O15+Майкоп!O15+Гиаг!O15+Кош!O15+Красн!O15+Майк!O15+Тахт!O15+Теуч!O15+Шовг!O15 -> 0 | Q15: =Адыг!Q15+Майкоп!Q15+Гиаг!R15+Кош!R15+Красн!R15+Майк!R15+Тахт!R15+Теуч!R15+Шовг!R15 -> 0 | S15: =Адыг!S15+Майкоп!S15+Гиаг!U15+Кош!U15+Красн!U15+Майк!U15+Тахт!U15+Теуч!U15+Шовг!U15 -> 0
A16: индекс физического объема оборота розничной торговли | B16: % к предыдущему году | C16: 1 | G16: 02
A17: индекс-дефлятор оборота розничной торговли | B17: % к предыдущему году | C17: 1 | G17: 30
A18: Оборот общественного питания | B18: млн. руб. в ценах соответствующих лет | C18: 1 | G18: 04 | L18: =Адыг!L18+Майкоп!L18+Гиаг!L18+Кош!L18+Красн!L18+Майк!L18+Тахт!L18+Теуч!L18+Шовг!L18 -> 0 | M18: =Адыг!M18+Майкоп!M18+Гиаг!M18+Кош!M18+Красн!M18+Майк!M18+Тахт!M18+Теуч!M18+Шовг!M18 -> 0 | N18: =Адыг!N18+Майкоп!N18+Гиаг!N18+Кош!N18+Красн!N18+Майк!N18+Тахт!N18+Теуч!N18+Шовг!N18 -> 0 | O18: =Адыг!O18+Майкоп!O18+Гиаг!O18+Кош!O18+Красн!O18+Майк!O18+Тахт!O18+Теуч!O18+Шовг!O18 -> 0 | Q18: =Адыг!Q18+Майкоп!Q18+Гиаг!R18+Кош!R18+Красн!R18+Майк!R18+Тахт!R18+Теуч!R18+Шовг!R18 -> 0 | S18: =Адыг!S18+Майкоп!S18+Гиаг!U18+Кош!U18+Красн!U18+Майк!U18+Тахт!U18+Теуч!U18+Шовг!U18 -> 0
A19: индекс физического объема оборота общественного питания | B19: % к предыдущему году | C19: 1 | G19: 02
A20: индекс цен на продукцию общественного питания | B20: % к предыдущему году | C20: 1 | G20: 02
A21: Объем платных услуг населению | B21: млн. руб. в ценах соответствующих лет | C21: 1 | G21: 04 | N21: =M21*N22*N23/100/100 -> 0 | O21: =N21*O22*O23/100/100 -> 0 | Q21: =O21*Q22*Q23/100/100 -> 0 | S21: =Q21*S22*S23*100/100 -> 0
B22: % к предыдущему году в сопоставимых ценах | C22: 1 | G22: 02
A23: индекс-дефлятор по платным услугам | B23: % к предыдущему году | C23: 1 | G23: 30
A26: Макухина Людмила Александровна, 52-51-10

Sheet Майк
B2: К прогнозу на 2026-2028 годы по Республике Адыгея
M4: раздел ПОТРЕБИТЕЛЬСКИЙ РЫНОК
B9: Единица измерения | C9: Код | D9: Доп. Код | E9: Код отрасли | F9: Форма собственности | G9: Измерение | H9: отчет | N9: оценка | O9: прогноз
H10: 1998 | I10: 1999 | J10: 2000 | K10: 2001 | L10: 2023 год | M10: 2024 год | N10: 2025 год | O10: 2026 год | Q10: 2027 год | S10: 2028 год
O11: вариант 1 | P11: вариант 2 | Q11: вариант 1 | R11: вариант 2 | S11: вариант 1 | T11: вариант 2
A12: 3. Рынок товаров и услуг
A13: Индекс потребительских цен | B13: декабрь к декабрю предыдущего года, % | C13: 1 | G13: 02
A14: Индекс потребительских цен (среднегодовой) | B14: % к предыдущему году | C14: 1 | G14: 02
A15: Оборот розничной торговли | B15: млн. руб. в ценах соответствующих лет | C15: 1 | G15: 04 | L15: =Адыг!L15+Майкоп!L15+Гиаг!L15+Кош!L15+Красн!L15+Майк!L15+Тахт!L15+Теуч!L15+Шовг!L15 -> 0 | M15: =Адыг!M15+Майкоп!M15+Гиаг!M15+Кош!M15+Красн!M15+Майк!M15+Тахт!M15+Теуч!M15+Шовг!M15 -> 0 | N15: =Адыг!N15+Майкоп!N15+Гиаг!N15+Кош!N15+Красн!N15+Майк!N15+Тахт!N15+Теуч!N15+Шовг!N15 -> 0 | O15: =Адыг!O15+Майкоп!O15+Гиаг!O15+Кош!O15+Красн!O15+Майк!O15+Тахт!O15+Теуч!O15+Шовг!O15 -> 0 | Q15: =Адыг!Q15+Майкоп!Q15+Гиаг!R15+Кош!R15+Красн!R15+Майк!R15+Тахт!R15+Теуч!R15+Шовг!R15 -> 0 | S15: =Адыг!S15+Майкоп!S15+Гиаг!U15+Кош!U15+Красн!U15+Майк!U15+Тахт!U15+Теуч!U15+Шовг!U15 -> 0
A16: индекс физического объема оборота розничной торговли | B16: % к предыдущему году | C16: 1 | G16: 02
A17: индекс-дефлятор оборота розничной торговли | B17: % к предыдущему году | C17: 1 | G17: 30
A18: Оборот общественного питания | B18: млн. руб. в ценах соответствующих лет | C18: 1 | G18: 04 | L18: =Адыг!L18+Майкоп!L18+Гиаг!L18+Кош!L18+Красн!L18+Майк!L18+Тахт!L18+Теуч!L18+Шовг!L18 -> 0 | M18: =Адыг!M18+Майкоп!M18+Гиаг!M18+Кош!M18+Красн!M18+Майк!M18+Тахт!M18+Теуч!M18+Шовг!M18 -> 0 | N18: =Адыг!N18+Майкоп!N18+Гиаг!N18+Кош!N18+Красн!N18+Майк!N18+Тахт!N18+Теуч!N18+Шовг!N18 -> 0 | O18: =Адыг!O18+Майкоп!O18+Гиаг!O18+Кош!O18+Красн!O18+Майк!O18+Тахт!O18+Теуч!O18+Шовг!O18 -> 0 | Q18: =Адыг!Q18+Майкоп!Q18+Гиаг!R18+Кош!R18+Красн!R18+Майк!R18+Тахт!R18+Теуч!R18+Шовг!R18 -> 0 | S18: =Адыг!S18+Майкоп!S18+Гиаг!U18+Кош!U18+Красн!U18+Майк!U18+Тахт!U18+Теуч!U18+Шовг!U18 -> 0
A19: индекс физического объема оборота общественного питания | B19: % к предыдущему году | C19: 1 | G19: 02
A20: индекс цен на продукцию общественного питания | B20: % к предыдущему году | C20: 1 | G20: 02
A21: Объем платных услуг населению | B21: млн. руб. в ценах соответствующих лет | C21: 1 | G21: 04 | N21: =M21*N22*N23/100/100 -> 0 | O21: =N21*O22*O23/100/100 -> 0 | Q21: =O21*Q22*Q23/100/100 -> 0 | S21: =Q21*S22*S23*100/100 -> 0
B22: % к предыдущему году в сопоставимых ценах | C22: 1 | G22: 02
A23: индекс-дефлятор по платным услугам | B23: % к предыдущему году | C23: 1 | G23: 30
A26: Макухина Людмила Александровна, 52-51-10

Sheet Тахт
B2: К прогнозу на 2026-2028 годы по Республике Адыгея
M4: раздел ПОТРЕБИТЕЛЬСКИЙ РЫНОК
B9: Единица измерения | C9: Код | D9: Доп. Код | E9: Код отрасли | F9: Форма собственности | G9: Измерение | H9: отчет | N9: оценка | O9: прогноз
H10: 1998 | I10: 1999 | J10: 2000 | K10: 2001 | L10: 2023 год | M10: 2024 год | N10: 2025 год | O10: 2026 год | Q10: 2027 год | S10: 2028 год
O11: вариант 1 | P11: вариант 2 | Q11: вариант 1 | R11: вариант 2 | S11: вариант 1 | T11: вариант 2
A12: 3. Рынок товаров и услуг
A13: Индекс потребительских цен | B13: декабрь к декабрю предыдущего года, % | C13: 1 | G13: 02
A14: Индекс потребительских цен (среднегодовой) | B14: % к предыдущему году | C14: 1 | G14: 02
A15: Оборот розничной торговли | B15: млн. руб. в ценах соответствующих лет | C15: 1 | G15: 04 | L15: =Адыг!L15+Майкоп!L15+Гиаг!L15+Кош!L15+Красн!L15+Майк!L15+Тахт!L15+Теуч!L15+Шовг!L15 -> 0 | M15: =Адыг!M15+Майкоп!M15+Гиаг!M15+Кош!M15+Красн!M15+Майк!M15+Тахт!M15+Теуч!M15+Шовг!M15 -> 0 | N15: =Адыг!N15+Майкоп!N15+Гиаг!N15+Кош!N15+Красн!N15+Майк!N15+Тахт!N15+Теуч!N15+Шовг!N15 -> 0 | O15: =Адыг!O15+Майкоп!O15+Гиаг!O15+Кош!O15+Красн!O15+Майк!O15+Тахт!O15+Теуч!O15+Шовг!O15 -> 0 | Q15: =Адыг!Q15+Майкоп!Q15+Гиаг!R15+Кош!R15+Красн!R15+Майк!R15+Тахт!R15+Теуч!R15+Шовг!R15 -> 0 | S15: =Адыг!S15+Майкоп!S15+Гиаг!U15+Кош!U15+Красн!U15+Майк!U15+Тахт!U15+Теуч!U15+Шовг!U15 -> 0
A16: индекс физического объема оборота розничной торговли | B16: % к предыдущему году | C16: 1 | G16: 02
A17: индекс-дефлятор оборота розничной торговли | B17: % к предыдущему году | C17: 1 | G17: 30
A18: Оборот общественного питания | B18: млн. руб. в ценах соответствующих лет | C18: 1 | G18: 04 | L18: =Адыг!L18+Майкоп!L18+Гиаг!L18+Кош!L18+Красн!L18+Майк!L18+Тахт!L18+Теуч!L18+Шовг!L18 -> 0 | M18: =Адыг!M18+Майкоп!M18+Гиаг!M18+Кош!M18+Красн!M18+Майк!M18+Тахт!M18+Теуч!M18+Шовг!M18 -> 0 | N18: =Адыг!N18+Майкоп!N18+Гиаг!N18+Кош!N18+Красн!N18+Майк!N18+Тахт!N18+Теуч!N18+Шовг!N18 -> 0 | O18: =Адыг!O18+Майкоп!O18+Гиаг!O18+Кош!O18+Красн!O18+Майк!O18+Тахт!O18+Теуч!O18+Шовг!O18 -> 0 | Q18: =Адыг!Q18+Майкоп!Q18+Гиаг!R18+Кош!R18+Красн!R18+Майк!R18+Тахт!R18+Теуч!R18+Шовг!R18 -> 0 | S18: =Адыг!S18+Майкоп!S18+Гиаг!U18+Кош!U18+Красн!U18+Майк!U18+Тахт!U18+Теуч!U18+Шовг!U18 -> 0
A19: индекс физического объема оборота общественного питания | B19: % к предыдущему году | C19: 1 | G19: 02
A20: индекс цен на продукцию общественного питания | B20: % к предыдущему году | C20: 1 | G20: 02
A21: Объем платных услуг населению | B21: млн. руб. в ценах соответствующих лет | C21: 1 | G21: 04 | N21: =M21*N22*N23/100/100 -> 0 | O21: =N21*O22*O23/100/100 -> 0 | Q21: =O21*Q22*Q23/100/100 -> 0 | S21: =Q21*S22*S23*100/100 -> 0
B22: % к предыдущему году в сопоставимых ценах | C22: 1 | G22: 02
A23: индекс-дефлятор по платным услугам | B23: % к предыдущему году | C23: 1 | G23: 30
A26: Макухина Людмила Александровна, 52-51-10

Sheet Теуч
B2: К прогнозу на 2026-2028 годы по Республике Адыгея
M4: раздел ПОТРЕБИТЕЛЬСКИЙ РЫНОК
B9: Единица измерения | C9: Код | D9: Доп. Код | E9: Код отрасли | F9: Форма собственности | G9: Измерение | H9: отчет | N9: оценка | O9: прогноз
H10: 1998 | I10: 1999 | J10: 2000 | K10: 2001 | L10: 2023 год | M10: 2024 год | N10: 2025 год | O10: 2026 год | Q10: 2027 год | S10: 2028 год
O11: вариант 1 | P11: вариант 2 | Q11: вариант 1 | R11: вариант 2 | S11: вариант 1 | T11: вариант 2
A12: 3. Рынок товаров и услуг
A13: Индекс потребительских цен | B13: декабрь к декабрю предыдущего года, % | C13: 1 | G13: 02
A14: Индекс потребительских цен (среднегодовой) | B14: % к предыдущему году | C14: 1 | G14: 02
A15: Оборот розничной торговли | B15: млн. руб. в ценах соответствующих лет | C15: 1 | G15: 04 | L15: =Адыг!L15+Майкоп!L15+Гиаг!L15+Кош!L15+Красн!L15+Майк!L15+Тахт!L15+Теуч!L15+Шовг!L15 -> 0 | M15: =Адыг!M15+Майкоп!M15+Гиаг!M15+Кош!M15+Красн!M15+Майк!M15+Тахт!M15+Теуч!M15+Шовг!M15 -> 0 | N15: =Адыг!N15+Майкоп!N15+Гиаг!N15+Кош!N15+Красн!N15+Майк!N15+Тахт!N15+Теуч!N15+Шовг!N15 -> 0 | O15: =Адыг!O15+Майкоп!O15+Гиаг!O15+Кош!O15+Красн!O15+Майк!O15+Тахт!O15+Теуч!O15+Шовг!O15 -> 0 | Q15: =Адыг!Q15+Майкоп!Q15+Гиаг!R15+Кош!R15+Красн!R15+Майк!R15+Тахт!R15+Теуч!R15+Шовг!R15 -> 0 | S15: =Адыг!S15+Майкоп!S15+Гиаг!U15+Кош!U15+Красн!U15+Майк!U15+Тахт!U15+Теуч!U15+Шовг!U15 -> 0
A16: индекс физического объема оборота розничной торговли | B16: % к предыдущему году | C16: 1 | G16: 02
A17: индекс-дефлятор оборота розничной торговли | B17: % к предыдущему году | C17: 1 | G17: 30
A18: Оборот общественного питания | B18: млн. руб. в ценах соответствующих лет | C18: 1 | G18: 04 | L18: =Адыг!L18+Майкоп!L18+Гиаг!L18+Кош!L18+Красн!L18+Майк!L18+Тахт!L18+Теуч!L18+Шовг!L18 -> 0 | M18: =Адыг!M18+Майкоп!M18+Гиаг!M18+Кош!M18+Красн!M18+Майк!M18+Тахт!M18+Теуч!M18+Шовг!M18 -> 0 | N18: =Адыг!N18+Майкоп!N18+Гиаг!N18+Кош!N18+Красн!N18+Майк!N18+Тахт!N18+Теуч!N18+Шовг!N18 -> 0 | O18: =Адыг!O18+Майкоп!O18+Гиаг!O18+Кош!O18+Красн!O18+Майк!O18+Тахт!O18+Теуч!O18+Шовг!O18 -> 0 | Q18: =Адыг!Q18+Майкоп!Q18+Гиаг!R18+Кош!R18+Красн!R18+Майк!R18+Тахт!R18+Теуч!R18+Шовг!R18 -> 0 | S18: =Адыг!S18+Майкоп!S18+Гиаг!U18+Кош!U18+Красн!U18+Майк!U18+Тахт!U18+Теуч!U18+Шовг!U18 -> 0
A19: индекс физического объема оборота общественного питания | B19: % к предыдущему году | C19: 1 | G19: 02
A20: индекс цен на продукцию общественного питания | B20: % к предыдущему году | C20: 1 | G20: 02
A21: Объем платных услуг населению | B21: млн. руб. в ценах соответствующих лет | C21: 1 | G21: 04 | N21: =M21*N22*N23/100/100 -> 0 | O21: =N21*O22*O23/100/100 -> 0 | Q21: =O21*Q22*Q23/100/100 -> 0 | S21: =Q21*S22*S23*100/100 -> 0
B22: % к предыдущему году в сопоставимых ценах | C22: 1 | G22: 02
A23: индекс-дефлятор по платным услугам | B23: % к предыдущему году | C23: 1 | G23: 30
A26: Макухина Людмила Александровна, 52-51-10

Sheet Шовг
B2: К прогнозу на 2026-2028 годы по Республике Адыгея
M4: раздел ПОТРЕБИТЕЛЬСКИЙ РЫНОК
B9: Единица измерения | C9: Код | D9: Доп. Код | E9: Код отрасли | F9: Форма собственности | G9: Измерение | H9: отчет | N9: оценка | O9: прогноз
H10: 1998 | I10: 1999 | J10: 2000 | K10: 2001 | L10: 2023 год | M10: 2024 год | N10: 2025 год | O10: 2026 год | Q10: 2027 год | S10: 2028 год
O11: вариант 1 | P11: вариант 2 | Q11: вариант 1 | R11: вариант 2 | S11: вариант 1 | T11: вариант 2
A12: 3. Рынок товаров и услуг
A13: Индекс потребительских цен | B13: декабрь к декабрю предыдущего года, % | C13: 1 | G13: 02
A14: Индекс потребительских цен (среднегодовой) | B14: % к предыдущему году | C14: 1 | G14: 02
A15: Оборот розничной торговли | B15: млн. руб. в ценах соответствующих лет | C15: 1 | G15: 04 | L15: =Адыг!L15+Майкоп!L15+Гиаг!L15+Кош!L15+Красн!L15+Майк!L15+Тахт!L15+Теуч!L15+Шовг!L15 -> 0 | M15: =Адыг!M15+Майкоп!M15+Гиаг!M15+Кош!M15+Красн!M15+Майк!M15+Тахт!M15+Теуч!M15+Шовг!M15 -> 0 | N15: =Адыг!N15+Майкоп!N15+Гиаг!N15+Кош!N15+Красн!N15+Майк!N15+Тахт!N15+Теуч!N15+Шовг!N15 -> 0 | O15: =Адыг!O15+Майкоп!O15+Гиаг!O15+Кош!O15+Красн!O15+Майк!O15+Тахт!O15+Теуч!O15+Шовг!O15 -> 0 | Q15: =Адыг!Q15+Майкоп!Q15+Гиаг!R15+Кош!R15+Красн!R15+Майк!R15+Тахт!R15+Теуч!R15+Шовг!R15 -> 0 | S15: =Адыг!S15+Майкоп!S15+Гиаг!U15+Кош!U15+Красн!U15+Майк!U15+Тахт!U15+Теуч!U15+Шовг!U15 -> 0
A16: индекс физического объема оборота розничной торговли | B16: % к предыдущему году | C16: 1 | G16: 02
A17: индекс-дефлятор оборота розничной торговли | B17: % к предыдущему году | C17: 1 | G17: 30
A18: Оборот общественного питания | B18: млн. руб. в ценах соответствующих лет | C18: 1 | G18: 04 | L18: =Адыг!L18+Майкоп!L18+Гиаг!L18+Кош!L18+Красн!L18+Майк!L18+Тахт!L18+Теуч!L18+Шовг!L18 -> 0 | M18: =Адыг!M18+Майкоп!M18+Гиаг!M18+Кош!M18+Красн!M18+Майк!M18+Тахт!M18+Теуч!M18+Шовг!M18 -> 0 | N18: =Адыг!N18+Майкоп!N18+Гиаг!N18+Кош!N18+Красн!N18+Майк!N18+Тахт!N18+Теуч!N18+Шовг!N18 -> 0 | O18: =Адыг!O18+Майкоп!O18+Гиаг!O18+Кош!O18+Красн!O18+Майк!O18+Тахт!O18+Теуч!O18+Шовг!O18 -> 0 | Q18: =Адыг!Q18+Майкоп!Q18+Гиаг!R18+Кош!R18+Красн!R18+Майк!R18+Тахт!R18+Теуч!R18+Шовг!R18 -> 0 | S18: =Адыг!S18+Майкоп!S18+Гиаг!U18+Кош!U18+Красн!U18+Майк!U18+Тахт!U18+Теуч!U18+Шовг!U18 -> 0
A19: индекс физического объема оборота общественного питания | B19: % к предыдущему году | C19: 1 | G19: 02
A20: индекс цен на продукцию общественного питания | B20: % к предыдущему году | C20: 1 | G20: 02
A21: Объем платных услуг населению | B21: млн. руб. в ценах соответствующих лет | C21: 1 | G21: 04 | N21: =M21*N22*N23/100/100 -> 0 | O21: =N21*O22*O23/100/100 -> 0 | Q21: =O21*Q22*Q23/100/100 -> 0 | S21: =Q21*S22*S23*100/100 -> 0
B22: % к предыдущему году в сопоставимых ценах | C22: 1 | G22: 02
A23: индекс-дефлятор по платным услугам | B23: % к предыдущему году | C23: 1 | G23: 30
A26: Макухина Людмила Александровна, 52-51-10

Sheet Форма_3п (hidden)
B1: Показатели развития государственного сектора экономики на 2005 год
B2: (для субъектов Российской Федерации)
B3: (форма № 3п)
A4: № п.п | C4: Единица измерения | D4: 2003 год отчет | E4: 2004 год отчет | F4: 2005 год оценка | G4: 2006 год прогноз
A5: 1. | B5: Объем произведенной промышленной продукции (услуг) организациями государственного сектора экономики в действующих ценах | C5: млн. рублей
B6: индекс промышленного производства | C6: в % к пред. году
B7: доля государственного сектора в общем объеме произведенной промышленной продукции (услуг), (всего, в том числе по отраслям промышленности )* | C7: %
A9: 2. | B9: Производство продукции сельского хозяйства сельскохозяйственными организациями государственного сектора
B10: в действующих ценах | C10: млн. рублей
B11: индекс производства сельскохозяйственной продукции | C11: в % к пред. году
B12: доля государственного сектора в общем объеме производства продукции сельского хозяйства сельскохозяйственными организациями | C12: %
A14: 3. | B14: Инвестиции в основной капитал организаций государственного сектора за счет всех источников финансирования, всего в ценах соответствующих лет | C14: млн. рублей
B15: в сопоставимых ценах | C15: в % к пред. году
B16: доля государственного сектора в общем объеме инвестиций в основной капитал | C16: %
A18: 4. | B18: Среднесписочная численность работников (без внешних совместителей) организаций госсектора экономики | C18: тыс. чел.
B19: в том числе:
B20: промышленность | C20: тыс. человек
B21: сельское хозяйство | C21: тыс. человек
B22: транспорт | C22: тыс. человек
B23: связь | C23: тыс. человек
B24: строительство | C24: тыс. человек
B25: доля численности работников организаций госсектора в общей численности работников в целом по экономике | C25: %
A27: 5. | B27: Фонд начисленной заработной платы всех работников организаций госсектора | C27: млн. руб.
B28: в том числе:
B29: промышленность | C29: млн. руб.
B30: сельское хозяйство | C30: млн. руб.
B31: транспорт | C31: млн. руб.
B32: связь | C32: млн. руб.
B33: строительство | C33: млн. руб.
A35: 6. | B35: Объем платных услуг населению, оказываемых организациями госсектора (с учетом НДС и налога с продаж), всего | C35: млн. рублей
C36: в % к пред. году
B37: из них: по основным видам платных услуг населению:
B38: бытовые услуги | C38: млн. рублей
C39: в % к пред. году
B40: транспортные услуги | C40: млн. рублей
C41: в % к пред. году
B42: услуги связи | C42: млн. рублей
C43: в % к пред. году
B44: жилищные услуги | C44: млн. рублей
C45: в % к пред. году
B46: коммунальные услуги | C46: млн. рублей
C47: в % к пред. году
B48: услуги учреждений культуры | C48: млн. рублей
C49: в % к пред. году
B50: услуги в системе образования | C50: млн. рублей
C51: в % к пред. году
B52: медицинские услуги | C52: млн. рублей
C53: в % к пред. году
B54: туристские услуги | C54: млн. рублей
C55: в % к пред. году
B56: услуги физической культуры и спорта | C56: - млн. рублей
C57: в % к пред. году
B58: санаторно-оздоровительные услуги | C58: - млн. рублей
C59: в % к пред. году
B60: услуги гостиниц и аналогичных средств размещения | C60: - млн. рублей
C61: в % к пред. году
B62: прочие виды платных услуг | C62: - млн. рублей
C63: в % к пред. году
B64: доля госсектора в общем объеме платных услуг населению | C64: %
B65: из нее:
B66: по основным видам платных услуг населению, указанным выше | C66: %
B68: Структура и использование государственной собственности
A70: 7. | B70: Количество организаций госсектора, всего | C70: единиц
B71: в том числе:
B72: по отраслям экономики и промышленности | C72: единиц
B73: по организационно-правовым формам (государственные унитарные предприятия; государственные учреждения; хозяйственные общества с долей госсобственности, превышающей 50% уставного капитала; хозяйственные общества, в уставном капитале которых более 50% акций (долей) находятся в собственности хозяйственных обществ, относящихся к госсектору) (далее – по организационно-правовым формам) | C73: единиц
B74: доля государственного сектора в общем количестве организаций | C74: %
B75: в том числе:
B76: по отраслям экономики и промышленности | C76: %
B77: по организационно-правовым формам | C77: %
A79: 8. | B79: Количество приватизированных имущественных комплексов государственных унитарных предприятий, всего | C79: единиц
C80: в % к пред. году
B81: в том числе:
B82: по отраслям экономики и промышленности | C82: единиц
C83: в % к пред. году
A85: 9. | B85: Средства, полученные от покупателей государственного имущества,всего | C85: млн. руб.
B86: из них:
B87: от продажи акций открытых акционерных обществ | C87: млн. руб.
B88: от продажи государственного имущества (без продажи акций открытых акционерных обществ) | C88: млн. руб.
B89: из них:
B90: от выкупа земельных участков собственниками объектов недвижимости | C90: млн. руб.
A92: 10. | B92: Перечислено денежных средств, полученных от покупателей государственного имущества, всего | C92: млн. руб.
B93: из них:
B94: в федеральный бюджет | C94: млн. руб.
A96: 11. | B96: Средства, полученные от использования находящегося в госсобственности имущества, всего | C96: млн. руб.
B97: в том числе:
B98: перечисленные в федеральный бюджет | C98: млн. руб.
B99: из них:
B100: дивиденды по акциям организаций госсектора, принадлежащим государству, всего | C100: млн. руб.
B101: средства, полученные от сдачи в аренду имущества, находящегося в госсобственности, всего | C101: млн. руб.
B103: Примечание. По стоимостным показателям объем в ценах соответствующих лет рассчитываются: 2003 год – отчет,
B104: 2004 и 2005 годы – по индексам цен.
B105: * - при необходимости можно добавить строки, на этом листе защиты нет

Sheet пер2 СНГ (hidden)
B1: перечень №2 | D1: СТРАНЫ СНГ
B2: важнейших видов продукции для разработки прогноза социально-экономического
B3: развития субъекта Российской Федерации на 2003 год по разделу | D3: Внешнеэкономическая деятельность
B4: Код ТН ВЭД* | C4: Наименование продукции | D4: Единицы измерения | E4: 2003 | F4: отчет | G4: 2004 | H4: отчет | I4: 2005 | J4: оценка | K4: 2006 | L4: прогноз
D5: в натуральном выражении | E5: в натуральном выражении | F5: Млн. долл. США | G5: в натуральном выражении | H5: Млн. долл. США | I5: в натуральном выражении | J5: Млн. долл. США | K5: в натуральном выражении | L5: Млн. долл. США
C6: ЭКСПОРТ
B7: 2701 | C7: Уголь каменный
B8: 2709 | C8: Нефть сырая | D8: тыс.тонн
B9: 2710 | C9: Нефтепродукты | D9: тыс.тонн
B10: 271121000 | C10: Газ природный | D10: млрд.куб.м
B11: 2716 | C11: Электроэнергия | D11: млн.кВт-ч
B12: 3102 | C12: Удобрения азотные | D12: тыс.тонн
B13: 3104 | C13: Удобрения калийные | D13: тыс.тонн
B14: 3105 | C14: Удобрения смешанные | D14: тыс.тонн
B15: 4403 | C15: Лесоматериалы необработанные | D15: тыс.куб.м
B16: 4407 | C16: Лесоматериалы обработанные | D16: тыс.тонн
B17: 4702-4704 | C17: Целлюлоза древесная | D17: тыс.тонн
B18: 72 | C18: Черные металлы | D18: тыс.тонн
B19: 7403 | C19: Медь рафинированная | D19: тыс.тонн
B20: 7502 | C20: Никель необработанный | D20: тыс.тонн
B21: 7601 | C21: Алюминий необработанный | D21: тыс.тонн
B22: 84-90 | C22: Машины и оборудование | D22: -
B23: 8703 | C23: Автомобили легковые | D23: тыс.шт.
B24: 8704 | C24: Автомобили грузовые | D24: тыс.шт.
C25: ИМПОРТ
C26: ВСЕГО
B27: 0201-0204 | C27: Мясо свежее и мороженое | D27: тыс.тонн
B28: 0402 | C28: Молоко и сливки сгущенные | D28: тыс.тонн
B29: 0405 | C29: Масло сливочное | D29: тыс.тонн
B30: 10 | C30: Зерновые культуры | D30: -
B31: 1512 | C31: Масло подсолнечное | D31: тыс.тонн
B32: 170111-170112 | C32: Сахар-сырец | D32: тыс.тонн
B33: 22 | C33: Напитки алкогольные и безалкогольные | D33: -
B34: 2701 | C34: Уголь каменный | D34: тыс.тонн
B35: 4001-4002 | C35: Каучук натуральный и синтетический | D35: тыс.тонн
B36: 5101 | C36: Шерсть | D36: тыс.тонн
B37: 5201 | C37: Волокно хлопковое, нечесаное | D37: тыс.тонн
B38: 5301 | C38: Волокно льняное | D38: тыс.тонн
B39: 72 | C39: Черные металлы | D39: тыс.тонн
B40: 7202 | C40: Ферросплавы | D40: тыс.тонн
B41: 7304-7306 | C41: Трубы стальные | D41: тыс.тонн
B42: 7403 | C42: Медь рафинированная | D42: тыс.тонн
B43: 7801 | C43: Свинец | D43: тыс.тонн
B44: 84-90 | C44: Машины и оборудование | D44: -
B45: 8703 | C45: Автомобили легковые | D45: тыс.шт.
B46: 8704 | C46: Автомобили грузовые | D46: тыс.шт.
B48: * - коды указаны в соответствии с товарной номенклатурой, утвержденной постановлением Правительства Российской Федерации от 30 ноября 2001г. № 830

Sheet Пер2СНГБеларусь (hidden)
B1: перечень №2 | D1: ИЗ СТРАН СНГ: | E1: в т.ч.РЕСПУБЛИКА БЕЛАРУСЬ
B2: важнейших видов продукции для разработки прогноза социально-экономического
B3: развития субъекта Российской Федерации на 2003 год по разделу | D3: Внешнеэкономическая деятельность
B4: Код ТН ВЭД* | C4: Наименование продукции | D4: Единицы измерения | E4: 2003 | F4: отчет | G4: 2004 | H4: отчет | I4: 2005 | J4: оценка | K4: 2006 | L4: прогноз
D5: в натуральном выражении | E5: в натуральном выражении | F5: Млн. долл. США | G5: в натуральном выражении | H5: Млн. долл. США | I5: в натуральном выражении | J5: Млн. долл. США | K5: в натуральном выражении | L5: Млн. долл. США
C6: ЭКСПОРТ
B7: 2701 | C7: Уголь каменный | D7: тыс.тонн
B8: 2709 | C8: Нефть сырая | D8: тыс.тонн
B9: 2710 | C9: Нефтепродукты | D9: тыс.тонн
B10: 271121000 | C10: Газ природный | D10: млрд.куб.м
B11: 2716 | C11: Электроэнергия | D11: млн.кВт-ч
B12: 3102 | C12: Удобрения азотные | D12: тыс.тонн
B13: 3104 | C13: Удобрения калийные | D13: тыс.тонн
B14: 3105 | C14: Удобрения смешанные | D14: тыс.тонн
B15: 4403 | C15: Лесоматериалы необработанные | D15: тыс.куб.м
B16: 4407 | C16: Лесоматериалы обработанные | D16: тыс.тонн
B17: 4702-4704 | C17: Целлюлоза древесная | D17: тыс.тонн
B18: 72 | C18: Черные металлы | D18: тыс.тонн
B19: 7403 | C19: Медь рафинированная | D19: тыс.тонн
B20: 7502 | C20: Никель необработанный | D20: тыс.тонн
B21: 7601 | C21: Алюминий необработанный | D21: тыс.тонн
B22: 84-90 | C22: Машины и оборудование | D22: -
B23: 8703 | C23: Автомобили легковые | D23: тыс.шт.
B24: 8704 | C24: Автомобили грузовые | D24: тыс.шт.
C25: ИМПОРТ
B26: 0201-0204 | C26: Мясо свежее и мороженое | D26: тыс.тонн
B27: 0402 | C27: Молоко и сливки сгущенные | D27: тыс.тонн
B28: 0405 | C28: Масло сливочное | D28: тыс.тонн
B29: 10 | C29: Зерновые культуры | D29: -
B30: 1512 | C30: Масло подсолнечное | D30: тыс.тонн
B31: 170111-170112 | C31: Сахар-сырец | D31: тыс.тонн
B32: 170199100 | C32: Сахар белый | D32: тыс.тонн
B33: 22 | C33: Напитки алкогольные и безалкогольные | D33: -
B34: 2701 | C34: Уголь каменный | D34: тыс.тонн
B35: 4001-4002 | C35: Каучук натуральный и синтетический | D35: тыс.тонн
B36: 5101 | C36: Шерсть | D36: тыс.тонн
B37: 5201 | C37: Волокно хлопковое, нечесаное | D37: тыс.тонн
B38: 5301 | C38: Волокно льняное | D38: тыс.тонн
B39: 72 | C39: Черные металлы | D39: тыс.тонн
B40: 7202 | C40: Ферросплавы | D40: тыс.тонн
B41: 7304-7306 | C41: Трубы стальные | D41: тыс.тонн
B42: 7403 | C42: Медь рафинированная | D42: тыс.тонн
B43: 7801 | C43: Свинец | D43: тыс.тонн
B44: 84-90 | C44: Машины и оборудование | D44: -
B45: 8703 | C45: Автомобили легковые | D45: тыс.шт.
B46: 8704 | C46: Автомобили грузовые | D46: тыс.шт.
B48: * - коды указаны в соответствии с товарной номенклатурой, утвержденной постановлением Правительства Российской Федерации от 30 ноября 2001г. № 830

Sheet пер2 вне СНГ (hidden)
C1: перечень №2 | D1: СТРАНЫ ВНЕ СНГ
B2: важнейших видов продукции для разработки прогноза социально-экономического
B3: развития субъекта Российской Федерации на 2003 год по разделу | D3: Внешнеэкономическая деятельность
B4: Код ТН ВЭД* | C4: Наименование продукции | D4: Единицы измерения | E4: 2003 | F4: отчет | G4: 2004 | H4: отчет | I4: 2005 | J4: оценка | K4: 2006 | L4: прогноз
D5: в натуральном выражении | E5: в натуральном выражении | F5: Млн. долл. США | G5: в натуральном выражении | H5: Млн. долл. США | I5: в натуральном выражении | J5: Млн. долл. США | K5: в натуральном выражении | L5: Млн. долл. США
C6: ЭКСПОРТ
B7: 1001 | C7: Пшеница и меслин | D7: тыс.тонн
B8: 0302-0304 | C8: Рыба свежая и мороженая | D8: тыс.тонн
B9: 220860110 | C9: Водка, дал 100% спирта | D9: тыс.тонн
B10: 2510 | C10: Фосфаты кальция | D10: тыс.тонн
B11: 2601 | C11: Руды и концентраты железные | D11: тыс.тонн
B12: 2701 | C12: Уголь каменный | D12: тыс.тонн
B13: 2704 | C13: Кокс и полукокс | D13: тыс.тонн
B14: 2709 | C14: Нефть сырая | D14: тыс.тонн
B15: 2710 | C15: Нефтепродукты | D15: тыс.тонн
B16: 2710114100-2710115900 | C16: Бензин автомобильный | D16: тыс.тонн
B17: 2710192100 | C17: Топливо реактивное | D17: тыс.тонн
B18: 2710193100-2710194900 | C18: Дизельное топливо | D18: тыс.тонн
B19: 2710195100-2710196900 | C19: Мазут | D19: тыс.тонн
B20: 271121000 | C20: Газ природный | D20: млрд.куб.м
B21: 2716 | C21: Электроэнергия | D21: млн.кВт-ч
B22: 281410000 | C22: Аммиак безводный | D22: тыс.тонн
B23: 290511 | C23: Метанол | D23: тыс.тонн
B24: 3102 | C24: Удобрения азотные | D24: тыс.тонн
B25: 3104 | C25: Удобрения калийные | D25: тыс.тонн
B26: 3105 | C26: Удобрения смешанные | D26: тыс.тонн
B27: 4002 | C27: Каучук синтетический | D27: тыс.тонн
B28: 4403 | C28: Лесоматериалы необработанные | D28: тыс.куб.м
B29: 4407 | C29: Лесоматериалы обработанные | D29: тыс.тонн
B30: 4412 | C30: Фанера клееная | D30: тыс.куб.м
B31: 4702-4704 | C31: Целлюлоза древесная | D31: тыс.тонн
B32: 4801 | C32: Бумага газетная | D32: тыс.тонн
B33: 5208-5212 | C33: Ткани хлопчатобумажные | D33: тыс.кв.м.
B34: 72 | C34: Черные металлы | D34: тыс.тонн
B35: 72 (кроме 7201-7204) | C35: Черные металлы (кроме чугуна, ферросплавов, отходов и лома) | D35: тыс.тонн
B36: 7202 | C36: Ферросплавы | D36: тыс.тонн
B37: 7207 | C37: Полуфабрикаты из углеродистой стали | D37: тыс.тонн
B38: 7208-7212 | C38: Прокат плоский из углеродистой стали | D38: тыс.тонн
B39: 7403 | C39: Медь рафинированная | D39: тыс.тонн
B40: 7502 | C40: Никель необработанный | D40: тыс.тонн
B41: 7601 | C41: Алюминий необработанный | D41: тыс.тонн
B42: 84-90 | C42: Машины и оборудование | D42: -
B43: 8703 | C43: Автомобили легковые | D43: тыс.шт.
B44: 8704 | C44: Автомобили грузовые | D44: тыс.шт.
C45: ИМПОРТ
B46: 0201-0204 | C46: Мясо свежее и мороженое | D46: тыс.тонн
B47: 0207 | C47: Мясо птицы свежее и мороженое | D47: тыс.тонн
B48: 0302-0304 | C48: Рыба свежая и мороженая | D48: тыс.тонн
B49: 0402 | C49: Молоко и сливки сгущенные | D49: тыс.тонн
B50: 0405 | C50: Масло сливочное | D50: тыс.тонн
B51: 0805 | C51: Цитрусовые | D51: тыс.тонн
B52: 0901 | C52: Кофе | D52: тыс.тонн
B53: 0902 | C53: Чай | D53: тыс.тонн
B54: 10 | C54: Зерновые культуры | D54: -
B55: 1001 | C55: Пшеница и меслин | D55: тыс.тонн
B56: 1003 | C56: Ячмень | D56: тыс.тонн
B57: 1005 | C57: Кукуруза | D57: тыс.тонн
B58: 1512 | C58: Масло подсолнечное | D58: тыс.тонн
B59: 1602 | C59: Изделия и консервы из мяса | D59: тыс.тонн
B60: 170111-170112 | C60: Сахар-сырец | D60: тыс.тонн
B61: 170199100 | C61: Сахар белый | D61: тыс.тонн
B62: 1801 | C62: Какао-бобы | D62: тыс.тонн
B63: 1806 | C63: Продукты, содержащие какао | D63: -
B64: 22 | C64: Напитки алкогольные и безалкогольные | D64: -
B65: 2402 | C65: Сигареты и сигары | D65: -
B66: 2606 | C66: Руды и концентраты алюминиевые | D66: тыс.тонн
B67: 2701 | C67: Уголь каменный | D67: тыс.тонн
B68: 2709 | C68: Нефть сырая | D68: тыс.тонн
B69: 2710 | C69: Нефтепродукты | D69: тыс.тонн
B70: 2941 | C70: Антибиотики | D70: -
B71: 3003-3004 | C71: Медикаменты | D71: -
B72: 3808 | C72: Химические средства защиты растений | D72: тыс.тонн
B73: 4001-4002 | C73: Каучук натуральный и синтетический | D73: тыс.тонн
B74: 5201 | C74: Волокно хлопковое, нечесаное | D74: тыс.тонн
B75: 5208-5212 | C75: Ткани хлопчатобумажные | D75: тыс.тонн
B76: 61-62 | C76: Одежда | D76: -
B77: 6403 | C77: Обувь кожаная | D77: млн.пар
B78: 72 | C78: Черные металлы | D78: тыс.тонн
B79: 72 (кроме 7201-7204) | C79: Черные металлы (кроме чугуна, ферросплавов, отходов и лома) | D79: тыс.тонн
B80: 7304-7306 | C80: Трубы стальные | D80: тыс.тонн
B81: 84-90 | C81: Машины и оборудование | D81: -
B82: 8703 | C82: Автомобили легковые | D82: тыс.шт.
B83: 8704 | C83: Автомобили грузовые | D83: тыс.шт.
B84: 9401-9403 | C84: Мебель | D84: -
B86: * - коды указаны в соответствии с товарной номенклатурой, утвержденной постановлением Правительства Российской Федерации от 30 ноября 2001г. № 830

Sheet Errors

Sheet Шаблон (hidden)
A1: Форма 2п
A2: Основные показатели, представляемые для разработки прогноза социально-экономического развития Российской Федерации на 2006 год и на период до 2009 года (для субъектов Российской Федерации)
B3: 1 | C3: 2
A5: Субъект Российской Федерации: | B5: Агинский Бурятский автономный округ
A6: Раздел показателей
A9: Показатели | B9: Единица измерения | C9: Код | D9: Доп. Код | E9: Код отрасли | F9: Форма собственности | G9: Измерение | H9: отчет | L9: отчет | M9: отчет | N9: оценка | O9: прогноз
H10: 1998 | I10: 1999 | J10: 2000 | K10: 2001 | L10: 2004 | M10: 2005 | N10: 2006 | O10: 2007 | Q10: 2008 | S10: 2009
O11: вариант 1 | P11: вариант 2 | Q11: вариант 1 | R11: вариант 2 | S11: вариант 1 | T11: вариант 2
A12: 1. Демографические показатели
A13: Численность постоянного населения (среднегодовая) - всего | B13: тыс. человек | C13: 1 | G13: 04
B14: % к предыдущему году | C14: 1 | G14: 02
A15: городского | B15: тыс. человек | C15: 1 | G15: 04
B16: % к предыдущему году | C16: 1 | G16: 02
A17: сельского | B17: тыс. человек | C17: 1 | G17: 04
B18: % к предыдущему году | C18: 1 | G18: 02
A19: Ожидаемая продолжительность жизни при рождении | B19: число лет | C19: 1 | G19: 04
A20: Общий коэффициент рождаемости | B20: человек на 1000 населения | C20: 1 | G20: 04
A21: Общий коэффициент смертности | B21: человек на 1000 населения | C21: 1 | G21: 04
A22: Коэффициент естественного прироста | B22: человек на 1000 населения | C22: 1 | G22: 04
A23: Коэффициент миграционного прироста | B23: человек на 10 000 населения | C23: 1 | G23: 04
A25: 2. Производство товаров и услуг
A26: 2.1. Выпуск товаров и услуг
A27: Выпуск товаров и услуг | B27: млн. руб. в основных ценах соответствующих лет | C27: 1 | G27: 04
A28: 2.2. Валовой региональный продукт
A29: Валовой региональный продукт - всего | B29: млн. руб. в ценах соответствующих лет | C29: 1 | G29: 04
B30: % к предыдущему году в сопоставимых ценах | C30: 1 | G30: 02
B31: индекс-дефлятор, % к пред. году | C31: 1 | G31: 30
A32: 2.3. Промышленное производство
A33: Индекс промышленного производства (РАЗДЕЛ C: Добыча полезных ископаемых+РАЗДЕЛ D: Обрабатывающие производства+РАЗДЕЛ E: Производство и распределение электроэнергии, газа и воды) | B33: % к предыдущему году | C33: 1 | G33: 30
A34: Добыча полезных ископаемых
A35: Объем отгруженных товаров собственного производства, выполненных работ и услуг собственными силами - РАЗДЕЛ C: Добыча полезных ископаемых | B35: млн. руб. в ценах соответствующих лет | C35: 1 | G35: 04
A36: Индекс производства - РАЗДЕЛ C: Добыча полезных ископаемых | B36: % к предыдущему году | C36: 1 | G36: 02
A37: Индекс-дефлятор - РАЗДЕЛ C: Добыча полезных ископаемых | B37: % к предыдущему году | C37: 1 | G37: 30
A38: Объем отгруженных товаров собственного производства, выполненных работ и услуг собственными силами - Подраздел CA: Добыча топливно-энергетических полезных ископаемых | B38: млн. руб. в ценах соответствующих лет | C38: 1 | G38: 04
A39: Индекс производства - Подраздел CA: Добыча топливно-энергетических полезных ископаемых | B39: % к предыдущему году | C39: 1 | G39: 02
A40: Индекс-дефлятор - Подраздел CA: Добыча топливно-энергетических полезных ископаемых | B40: % к предыдущему году | C40: 1 | G40: 30
A41: Объем отгруженных товаров собственного производства, выполненных работ и услуг собственными силами - Подраздел CB: Добыча полезных ископаемых, кроме топливно-энергетических | B41: млн. руб. в ценах соответствующих лет | C41: 1 | G41: 04
A42: Индекс производства - Подраздел CB: Добыча полезных ископаемых, кроме топливно-энергетических | B42: % к предыдущему году | C42: 1 | G42: 02
A43: Индекс-дефлятор - Подраздел CB: Добыча полезных ископаемых, кроме топливно-энергетических | B43: % к предыдущему году | C43: 1 | G43: 30
A44: Обрабатывающие производства
A45: Объем отгруженных товаров собственного производства, выполненных работ и услуг собственными силами - РАЗДЕЛ D: Обрабатывающие производства | B45: млн. руб. в ценах соответствующих лет | C45: 1 | G45: 04
A46: Индекс производства - РАЗДЕЛ D: Обрабатывающие производства | B46: % к предыдущему году | C46: 1 | G46: 02
A47: Индекс-дефлятор - РАЗДЕЛ D: Обрабатывающие производства | B47: % к предыдущему году | C47: 1 | G47: 30
A48: Объем отгруженных товаров собственного производства, выполненных работ и услуг собственными силами - Подраздел DA: Производство пищевых продуктов, включая напитки, и табака | B48: млн. руб. в ценах соответствующих лет | C48: 1 | G48: 04
A49: Индекс производства - Подраздел DA: Производство пищевых продуктов, включая напитки, и табака | B49: % к предыдущему году | C49: 1 | G49: 02
A50: Индекс-дефлятор - Подраздел DA: Производство пищевых продуктов, включая напитки, и табака | B50: % к предыдущему году | C50: 1 | G50: 30
A51: Объем отгруженных товаров собственного производства, выполненных работ и услуг собственными силами - Подраздел DB: Текстильное и швейное производство | B51: млн. руб. в ценах соответствующих лет | C51: 1 | G51: 04
A52: Индекс производства - Подраздел DB: Текстильное и швейное производство | B52: % к предыдущему году | C52: 1 | G52: 02
A53: Индекс-дефлятор - Подраздел DB: Текстильное и швейное производство | B53: % к предыдущему году | C53: 1 | G53: 30
A54: Объем отгруженных товаров собственного производства, выполненных работ и услуг собственными силами - Подраздел DC: Производство кожи, изделий из кожи и производство обуви | B54: млн. руб. в ценах соответствующих лет | C54: 1 | G54: 04
A55: Индекс производства - Подраздел DC: Производство кожи, изделий из кожи и производство обуви | B55: % к предыдущему году | C55: 1 | G55: 02
A56: Индекс-дефлятор - Подраздел DC: Производство кожи, изделий из кожи и производство обуви | B56: % к предыдущему году | C56: 1 | G56: 30
A57: Объем отгруженных товаров собственного производства, выполненных работ и услуг собственными силами - Подраздел DD: Обработка древесины и производство изделий из дерева | B57: млн. руб. в ценах соответствующих лет | C57: 1 | G57: 04
A58: Индекс производства - Подраздел DD: Обработка древесины и производство изделий из дерева | B58: % к предыдущему году | C58: 1 | G58: 02
A59: Индекс-дефлятор - Подраздел DD: Обработка древесины и производство изделий из дерева | B59: % к предыдущему году | C59: 1 | G59: 30
A60: Объем отгруженных товаров собственного производства, выполненных работ и услуг собственными силами - Подраздел DE: Целлюлозно-бумажное производство; издательская и полиграфическая деятельность | B60: млн. руб. в ценах соответствующих лет | C60: 1 | G60: 04
A61: Индекс производства - Подраздел DE: Целлюлозно-бумажное производство; издательская и полиграфическая деятельность | B61: % к предыдущему году | C61: 1 | G61: 02
A62: Индекс-дефлятор - Подраздел DE: Целлюлозно-бумажное производство; издательская и полиграфическая деятельность | B62: % к предыдущему году | C62: 1 | G62: 30
A63: Объем отгруженных товаров собственного производства, выполненных работ и услуг собственными силами - Подраздел DF: Производство кокса, нефтепродуктов и ядерных материалов | B63: млн. руб. в ценах соответствующих лет | C63: 1 | G63: 04
A64: Индекс производства - Подраздел DF: Производство кокса, нефтепродуктов и ядерных материалов | B64: % к предыдущему году | C64: 1 | G64: 02
A65: Индекс-дефлятор - Подраздел DF: Производство кокса, нефтепродуктов и ядерных материалов | B65: % к предыдущему году | C65: 1 | G65: 30
A66: Объем отгруженных товаров собственного производства, выполненных работ и услуг собственными силами - Подраздел DG: Химическое производство | B66: млн. руб. в ценах соответствующих лет | C66: 1 | G66: 04
A67: Индекс производства - Подраздел DG: Химическое производство | B67: % к предыдущему году | C67: 1 | G67: 02
A68: Индекс-дефлятор - Подраздел DG: Химическое производство | B68: % к предыдущему году | C68: 1 | G68: 30
A69: Объем отгруженных товаров собственного производства, выполненных работ и услуг собственными силами - Подраздел DH: Производство резиновых и пластмассовых изделий | B69: млн. руб. в ценах соответствующих лет | C69: 1 | G69: 04
A70: Индекс производства - Подраздел DH: Производство резиновых и пластмассовых изделий | B70: % к предыдущему году | C70: 1 | G70: 02
A71: Индекс-дефлятор - Подраздел DH: Производство резиновых и пластмассовых изделий | B71: % к предыдущему году | C71: 1 | G71: 30
A72: Объем отгруженных товаров собственного производства, выполненных работ и услуг собственными силами - Подраздел DI: Производство прочих неметаллических минеральных продуктов | B72: млн. руб. в ценах соответствующих лет | C72: 1 | G72: 04
A73: Индекс производства - Подраздел DI: Производство прочих неметаллических минеральных продуктов | B73: % к предыдущему году | C73: 1 | G73: 02
A74: Индекс-дефлятор - Подраздел DI: Производство прочих неметаллических минеральных продуктов | B74: % к предыдущему году | C74: 1 | G74: 30
A75: Объем отгруженных товаров собственного производства, выполненных работ и услуг собственными силами - Подраздел DJ: Металлургическое производство и производство готовых металлических изделий | B75: млн. руб. в ценах соответствующих лет | C75: 1 | G75: 04
A76: Индекс производства - Подраздел DJ: Металлургическое производство и производство готовых металлических изделий | B76: % к предыдущему году | C76: 1 | G76: 02
A77: Индекс-дефлятор - Подраздел DJ: Металлургическое производство и производство готовых металлических изделий | B77: % к предыдущему году | C77: 1 | G77: 30
A78: Объем отгруженных товаров собственного производства, выполненных работ и услуг собственными силами - 38.9: Производство машин и оборудования без производства оружия и боеприпасов | B78: млн. руб. в ценах соответствующих лет | C78: 1 | G78: 04
A79: Индекс производства - 38.9: Производство машин и оборудования без производства оружия и боеприпасов | B79: % к предыдущему году | C79: 1 | G79: 02
A80: Индекс-дефлятор - 38.9: Производство машин и оборудования без производства оружия и боеприпасов | B80: % к предыдущему году | C80: 1 | G80: 30
A81: Объем отгруженных товаров собственного производства, выполненных работ и услуг собственными силами - Подраздел DL: Производство электрооборудования, электронного и оптического оборудования | B81: млн. руб. в ценах соответствующих лет | C81: 1 | G81: 04
A82: Индекс производства - Подраздел DL: Производство электрооборудования, электронного и оптического оборудования | B82: % к предыдущему году | C82: 1 | G82: 02
A83: Индекс-дефлятор - Подраздел DL: Производство электрооборудования, электронного и оптического оборудования | B83: % к предыдущему году | C83: 1 | G83: 30
A84: Объем отгруженных товаров собственного производства, выполненных работ и услуг собственными силами - Подраздел DM: Производство транспортных средств и оборудования | B84: млн. руб. в ценах соответствующих лет | C84: 1 | G84: 04
A85: Индекс производства - Подраздел DM: Производство транспортных средств и оборудования | B85: % к предыдущему году | C85: 1 | G85: 02
A86: Индекс-дефлятор - Подраздел DM: Производство транспортных средств и оборудования | B86: % к предыдущему году | C86: 1 | G86: 30
A87: Объем отгруженных товаров собственного производства, выполненных работ и услуг собственными силами - Подраздел DN: Прочие производства | B87: млн. руб. в ценах соответствующих лет | C87: 1 | G87: 04
A88: Индекс производства - Подраздел DN: Прочие производства | B88: % к предыдущему году | C88: 1 | G88: 02
A89: Индекс-дефлятор - Подраздел DN: Прочие производства | B89: % к предыдущему году | C89: 1 | G89: 30
A90: Производство и распределение электроэнергии, газа и воды
A91: Объем отгруженных товаров собственного производства, выполненных работ и услуг собственными силами - РАЗДЕЛ E: Производство и распределение электроэнергии, газа и воды | B91: млн. руб. в ценах соответствующих лет | C91: 1 | G91: 04
A92: Индекс производства - РАЗДЕЛ E: Производство и распределение электроэнергии, газа и воды | B92: % к предыдущему году | C92: 1 | G92: 02
A93: Индекс-дефлятор - РАЗДЕЛ E: Производство и распределение электроэнергии, газа и воды | B93: % к предыдущему году | C93: 1 | G93: 30
A94: Потребление электроэнергии | B94: млн.кВт.ч. | C94: 1 | G94: 04
A95: в том числе по группам потребителей:
A96: Базовые потребители | B96: млн. кВт. ч. | C96: 1 | G96: 04
A97: Население | B97: млн. кВт. ч. | C97: 1 | G97: 04
A98: Прочие потребители | B98: млн. кВт. ч. | C98: 1 | G98: 04
A99: Средние тарифы на электроэнергию, отпущенную различным категориям потребителей | B99: руб./тыс.кВт.ч. | C99: 1 | G99: 04
A100: Индекс тарифов | B100: % к предыдущему году | C100: 1 | G100: 02
B101: % декабрь к декабрю предыдущего года | C101: 1 | G101: 02
A102: в том числе по группам потребителей:
A103: Базовые потребители | B103: руб./тыс.кВт.ч. | C103: 1 | G103: 04
A104: Индекс тарифов | B104: % к предыдущему году | C104: 1 | G104: 02
B105: % декабрь к декабрю предыдущего года | C105: 1 | G105: 02
A106: Население | B106: руб./тыс.кВт.ч. | C106: 1 | G106: 04
A107: Индекс тарифов | B107: % к предыдущему году | C107: 1 | G107: 02
B108: % декабрь к декабрю предыдущего года | C108: 1 | G108: 02
A109: Прочие потребители | B109: руб./тыс.кВт.ч. | C109: 1 | G109: 04
A110: Индекс тарифов | B110: % к предыдущему году | C110: 1 | G110: 02
B111: % декабрь к декабрю предыдущего года | C111: 1 | G111: 02
A112: 2.4. Рыболовство и рыбоводство и предоставление услуг в этих областях
A113: Объем отгруженных товаров собственного производства, выполненных работ и услуг собственными силами - РАЗДЕЛ B: Рыболовство (05.01) | B113: млн. руб. в ценах соответствующих лет | C113: 1 | G113: 04
A114: Индекс производства - РАЗДЕЛ B: Рыболовство (05.01) | B114: % к предыдущему году | C114: 1 | G114: 02
A115: Объем отгруженных товаров собственного производства, выполненных работ и услуг собственными силами - РАЗДЕЛ B: Рыбоводство (05.02) | B115: млн. руб. в ценах соответствующих лет | C115: 1 | G115: 04
A116: Индекс производства - РАЗДЕЛ B: Рыбоводство (05.02) | B116: % к предыдущему году | C116: 1 | G116: 02
A117: 2.5. Сельское хозяйство
A118: Объем продукции сельского хозяйства в хозяйствах всех категорий (Разделы ОКВЭД: 01.1+01.2+01.3) | B118: млн.руб. в ценах соответствующих лет | C118: 1 | G118: 04
A119: Индекс производства продукции сельского хозяйства в хозяйствах всех категорий | B119: % к предыдущему году | C119: 1 | G119: 02
A120: Индекс-дефлятор продукции сельского хозяйства в хозяйствах всех категорий | B120: % к предыдущему году | C120: 1 | G120: 30
A121: в том числе:
A122: Растениеводство | B122: млн.руб. в ценах соответствующих лет | C122: 1 | G122: 04
A123: Индекс производства продукции растениеводства | B123: % к предыдущему году | C123: 1 | G123: 02
A124: Индекс-дефлятор продукции растениеводства | B124: % к предыдущему году | C124: 1 | G124: 30
A125: Животноводство | B125: млн.руб. в ценах соответствующих лет | C125: 1 | G125: 04
A126: Индекс производства продукции животноводства | B126: % к предыдущему году | C126: 1 | G126: 02
A127: Индекс-дефлятор продукции животноводства | B127: % к предыдущему году | C127: 1 | G127: 30
A128: Продукция сельского хозяйства по категориям хозяйств:
A129: Продукция в сельскохозяйственных организациях | B129: млн. руб. в ценах соответствующих лет | C129: 1 | G129: 04
A130: Индекс производства продукции в сельскохозяйственных организациях | B130: % к предыдущему году | C130: 1 | G130: 02
A131: Продукция в крестьянских (фермерских) хозяйствах и у индивидуальных предпринимателей | B131: млн. руб. в ценах соответствующих лет | C131: 1 | G131: 04
A132: Индекс производства продукции в крестьянских (фермерских) хозяйствах и у индивидуальных предпринимателей | B132: % к предыдущему году | C132: 1 | G132: 02
A133: Продукция в хозяйствах населения | B133: млн. руб. в ценах соответствующих лет | C133: 1 | G133: 04
A134: Индекс производства продукции в хозяйствах населения | B134: % к предыдущему году | C134: 1 | G134: 02
A135: 2.6. Транспорт и связь
A136: Протяженность автомобильных дорог общего пользования с твердым покрытием | B136: км | C136: 1 | G136: 04
A137: Протяженность автомобильных дорог федерального значения | B137: км | C137: 1 | G137: 04
A138: Густота автомобильных дорог общего пользования с твердым покрытием | B138: километров дорог на 1 000 квадратных километров территории | C138: 1 | G138: 04
A139: Удельный вес автомобильных дорог с твердым покрытием в общей протяженности автомобильных дорог общего пользования | B139: % | C139: 1 | G139: 04
A140: Наличие квартирных телефонных аппаратов сети общего пользования в городской местности | B140: штук на 1 000 человек | C140: 1 | G140: 04
A141: Наличие квартирных телефонных аппаратов сети общего пользования в сельской местности | B141: штук на 1 000 человек | C141: 1 | G141: 04
A142: 2.7. Производство важнейших видов продукции в натуральном выражении
A143: Зерно (в весе после доработки) | B143: тыс. тонн | C143: 1 | G143: 04
A144: Сахарная свекла | B144: тыс. тонн | C144: 1 | G144: 04
A145: Подсолнечник | B145: тыс. тонн | C145: 1 | G145: 04
A146: Картофель | B146: тыс. тонн | C146: 1 | G146: 04
A147: Овоши | B147: тыс. тонн | C147: 1 | G147: 04
A148: Скот и птица | B148: тыс. тонн | C148: 1 | G148: 04
A149: Молоко | B149: тыс. тонн | C149: 1 | G149: 04
A150: Яйца | B150: млн. штук | C150: 1 | G150: 04
A151: Древесина деловая | B151: тыс. плот. куб. м | C151: 1 | G151: 04
A152: Уголь | B152: тыс. тонн | C152: 1 | G152: 04
A153: Нефть, включая газовый конденсат | B153: тыс. тонн | C153: 1 | G153: 04
A154: Газ естественный (природный) | B154: млн. куб. м | C154: 1 | G154: 04
A155: Мясо, включая субпродукты 1 категории | B155: тыс. тонн | C155: 1 | G155: 04
A156: Цельномолочная продукция (в пересчете на молоко) | B156: тыс. тонн | C156: 1 | G156: 04
A157: Сахар-песок, всего | B157: тыс. тонн | C157: 1 | G157: 04
A158: Масла растительные | B158: тыс. тонн | C158: 1 | G158: 04
A159: Товарная пищевая рыбная продукция, включая консервы рыбные | B159: тыс. тонн | C159: 1 | G159: 04
A160: Спирт этиловый из пищевого сырья и технический- всего | B160: тыс. дкл | C160: 1 | G160: 04
A161: в т.ч. спирт этиловый из пищевого сырья | B161: тыс. дкл | C161: 1 | G161: 04
A162: Водка и ликеро-водочные изделия | B162: тыс. дкл | C162: 1 | G162: 04
A163: Коньяки | B163: тыс. дкл | C163: 1 | G163: 04
A164: Вина виноградные | B164: тыс. дкл | C164: 1 | G164: 04
A165: Вина плодовые | B165: тыс. дкл | C165: 1 | G165: 04
A166: Вина шампанские и игристые | B166: тыс. дкл | C166: 1 | G166: 04
A167: Hапитки винные (виноградные и плодовые) с содержанием спирта более 20% объемных | B167: тыс. дкл | C167: 1 | G167: 04
A168: Hапитки винные (виноградные и плодовые) с содержанием спирта до 20% объемных | B168: тыс. дкл | C168: 1 | G168: 04
A169: Напитки слабоалкогольные с содержанием этилового спирта не более 9% | B169: тыс. дкл | C169: 1 | G169: 04
A170: Пиво | B170: тыс. дкл | C170: 1 | G170: 04
A171: Ткани хлопчатобумажные готовые | B171: тыс. кв. м | C171: 1 | G171: 04
A172: Изделия трикотажные | B172: тыс. штук | C172: 1 | G172: 04
A173: Обувь | B173: тыс. пар | C173: 1 | G173: 04
A174: Пиломатериалы | B174: тыс. куб. м | C174: 1 | G174: 04
A175: Бумага | B175: тыс. тонн | C175: 1 | G175: 04
A176: Бензин автомобильный | B176: тыс. тонн | C176: 1 | G176: 04
A177: Топливо дизельное | B177: тыс. тонн | C177: 1 | G177: 04
A178: Масла смазочные нефтяные | B178: тыс. тонн | C178: 1 | G178: 04
A179: Мазут топочный | B179: тыс. тонн | C179: 1 | G179: 04
A180: Удобрения минеральные (в пересчете на 100% питательных веществ) | B180: тыс. тонн | C180: 1 | G180: 04
A181: Полиэтилен | B181: тонн | C181: 1 | G181: 04
A182: Шины для грузовых автомобилей, автобусов и троллейбусов | B182: тыс. штук | C182: 1 | G182: 04
A183: Шины для легковых автомобилей | B183: тыс. штук | C183: 1 | G183: 04
A184: Цемент | B184: тыс. тонн | C184: 1 | G184: 04
A185: Кирпич строительный | B185: млн. условных кирпичей | C185: 1 | G185: 04
A186: Блоки и камни мелкие стеновые (без блоков ячеистого бетона) | B186: млн. условных кирпичей | C186: 1 | G186: 04
A187: Блоки крупные стеновые (включая бетонные блоки стен подвалов) | B187: млн. условных кирпичей | C187: 1 | G187: 04
A188: Блоки мелкие стеновые из ячеистого бетона | B188: млн. условных кирпичей | C188: 1 | G188: 04
A189: Прокат черных металлов готовый | B189: тыс. тонн | C189: 1 | G189: 04
A190: Трубы стальные | B190: тыс. тонн | C190: 1 | G190: 04
A191: Станки металлорежущие | B191: штук | C191: 1 | G191: 04
A192: Тракторы | B192: тыс. штук | C192: 1 | G192: 04
A193: Телевизоры | B193: тыс. штук | C193: 1 | G193: 04
A194: Холодильники и морозильники бытовые | B194: тыс. штук | C194: 1 | G194: 04
A195: Машины стиральные бытовые | B195: тыс. штук | C195: 1 | G195: 04
A196: Электропылесосы | B196: тыс. штук | C196: 1 | G196: 04
A197: Ювелирные изделия в фактических ценах (без НДС и акциза) | B197: тыс. руб. | C197: 1 | G197: 04
A198: Автомобили грузовые | B198: штук | C198: 1 | G198: 04
A199: Автомобили легковые | B199: тыс. штук | C199: 1 | G199: 04
A200: Мотоциклы | B200: штук | C200: 1 | G200: 04
A201: Электроэнергия | B201: млрд. кВт. ч | C201: 1 | G201: 04
A202: в том числе вырабатываемая:
A203: АЭС | B203: млрд. кВт. ч | C203: 1 | G203: 04
A204: ТЭС | B204: млрд. кВт. ч | C204: 1 | G204: 04
... 425 more rows

Sheet Cond_2p (hidden)
A1: 13 | B1: 15 | C1: 17
A2: 35 | B2: 38 | C2: 41
A3: 45 | B3: 48 | C3: 51 | D3: 54 | E3: 57 | F3: 60 | G3: 63 | H3: 66 | I3: 69 | J3: 72 | K3: 75 | L3: 78 | M3: 81 | N3: 84 | O3: 87
A4: 94 | B4: 96 | C4: 97 | D4: 98
A5: 118 | B5: 129 | C5: 131 | D5: 133
A6: 221 | B6: 225 | C6: 227 | D6: 229 | E6: 231 | F6: 233 | G6: 235 | H6: 237 | I6: 239 | J6: 241 | K6: 243 | L6: 245 | M6: 247 | N6: 249 | O6: 251
A7: 259 | B7: 261 | C7: 262 | D7: 263 | E7: 264 | F7: 265 | G7: 266
A8: 268 | B8: 270 | C8: 271 | D8: 272 | E8: 273 | F8: 274
A9: 282 | B9: 284 | C9: 285 | D9: 286 | E9: 287 | F9: 288 | G9: 289
A10: 291 | B10: 293 | C10: 294 | D10: 295 | E10: 296 | F10: 297
A11: 333 | B11: 337 | C11: 339 | D11: 341 | E11: 347 | F11: 377 | G11: 379 | H11: 381 | I11: 383 | J11: 385 | K11: 387 | L11: 389 | M11: 391 | N11: 393 | O11: 395 | P11: 397 | Q11: 399
A12: 341 | B12: 343 | C12: 345
A13: 347 | B13: 349 | C13: 351 | D13: 353 | E13: 355 | F13: 357 | G13: 359 | H13: 361 | I13: 363 | J13: 365 | K13: 367 | L13: 369 | M13: 371 | N13: 373 | O13: 375
A14: 402 | B14: 404 | C14: 405
A15: 406 | B15: 408 | C15: 410 | D15: 411 | E15: 416 | F15: 417 | G15: 418 | H15: 419
A16: 411 | B16: 413 | C16: 415
A17: 424 | B17: 426 | C17: 428 | D17: 430
A18: 458 | B18: 439 | C18: 441 | D18: 444 | E18: 445 | F18: 446 | G18: 450 | H18: 451 | I18: 452 | J18: 455 | K18: 456 | L18: 457
A19: 460 | B19: 461 | C19: 462
A20: 463 | B20: 464 | C20: 465
A21: 466 | B21: 458 | C21: 459
A22: 483 | B22: 485 | C22: 486 | D22: 487 | E22: 488
A23: 488 | B23: 490 | C23: 491 | D23: 492 | E23: 493 | F23: 494
A24: 496 | B24: 468 | C24: 471 | D24: 475 | E24: 478 | F24: 479 | G24: 480 | H24: 481 | I24: 482 | J24: 483 | K24: 495
A25: 500 | B25: 502 | C25: 503 | D25: 504 | E25: 508 | F25: 509
A26: 504 | B26: 505 | C26: 506 | D26: 507
A27: 512 | B27: 514 | C27: 516 | D27: 517
A28: 579 | B28: 581 | C28: 582 | D28: 583
A29: 592 | B29: 594 | C29: 595 | D29: 596
A30: 607 | B30: 609 | C30: 611
A31: 613 | B31: 615 | C31: 617
A32: 625 | B32: 627 | C32: 629

Sheet Subjects (hidden)
A1: Агинский Бурятский автономный округ
A2: Алтайский край
A3: Амурская область
A4: Архангельская область
A5: Астраханская область
A6: Белгородская область
A7: Брянская область
A8: Владимирская область
A9: Волгоградская область
A10: Вологодская область
A11: Воронежская область
A12: Еврейская автономная область
A13: Ивановская область
A14: Иркутская область
A15: Кабардино-Балкарская Республика
A16: Калининградская область
A17: Калужская область
A18: Камчатская область
A19: Карачаево-Черкесская Республика
A20: Кемеровская область
A21: Кировская область
A22: Корякский автономный округ
A23: Костромская область
A24: Краснодарский край
A25: Красноярский край
A26: Курганская область
A27: Курская область
A28: Ленинградская область
A29: Липецкая область
A30: Магаданская область
A31: Москва
A32: Московская область
A33: Мурманская область
A34: Ненецкий автономный округ
A35: Нижегородская область
A36: Новгородская область
A37: Новосибирская область
A38: Омская область
A39: Оренбургская область
A40: Орловская область
A41: Пензенская область
A42: Пермский край
A43: Приморский край
A44: Псковская область
A45: Республика Адыгея
A46: Республика Алтай
A47: Республика Башкортостан
A48: Республика Бурятия
A49: Республика Дагестан
A50: Республика Ингушетия
A51: Республика Калмыкия
A52: Республика Карелия
A53: Республика Коми
A54: Республика Марий Эл
A55: Республика Мордовия
A56: Республика Саха (Якутия)
A57: Республика Северная Осетия-Алания
A58: Республика Татарстан
A59: Республика Тыва
A60: Республика Хакасия
A61: Ростовская область
A62: Рязанская область
A63: Самарская область
A64: Санкт-Петербург
A65: Саратовская область
A66: Сахалинская область
A67: Свердловская область
A68: Смоленская область
A69: Ставропольский край
A70: Таймырский (Долгано-Ненецкий) автономный округ
A71: Тамбовская область
A72: Тверская область
A73: Томская область
A74: Тульская область
A75: Тюменская область
A76: Удмуртская Республика
A77: Ульяновская область
A78: Усть-Ордынский Бурятский автономный округ
A79: Хабаровский край
A80: Ханты-Мансийский автономный округ
A81: Челябинская область
A82: Чеченская Республика
A83: Читинская область
A84: Чувашская Республика
A85: Чукотский автономный округ
A86: Эвенкийский автономный округ
A87: Ямало-Ненецкий автономный округ
A88: Ярославская область
A89: НЕ ВЫБРАН
A92: 1. Демографические показатели | B92: 12
A93: 2. Производство товаров и услуг | B93: 25
A94: 2.1. Выпуск товаров и услуг | B94: 26
A95: 2.2. Валовой региональный продукт | B95: 28
A96: 2.3. Промышленное производство | B96: 32
A97: Добыча полезных ископаемых | B97: 34
A98: Обрабатывающие производства | B98: 44
A99: Производство и распределение электроэнергии, газа и воды | B99: 90
A100: 2.4. Рыболовство и рыбоводство | B100: 112
A101: 2.5. Сельское хозяйство | B101: 117
A102: 2.6. Транспорт и связь | B102: 135
A103: 2.7. Производство важнейших видов продукции в натуральном выражении | B103: 142
A104: 2.8. Строительство | B104: 207
A105: 3. Рынок товаров и услуг | B105: 212
A106: 4. Внешнеэкономическая деятельность | B106: 253
A107: 5. Малое предпринимательство | B107: 300
A108: 6. Инвестиции | B108: 329
A109: 7. Финансы | B109: 437
A110: 8. Денежные доходы и расходы населения | B110: 499
A111: 9. Труд и занятость | B111: 524
A112: 10. Развитие социальной сферы | B112: 549
A113: 11. Охрана окружающей среды | B113: 591
A114: 12. Туризм | B114: 606

Sheet Cond_3p (hidden)
A1: 13 | B1: 15 | C1: 17
A2: 27 | B2: 31 | C2: 34 | D2: 37 | E2: 40 | F2: 43 | G2: 46 | H2: 49
A3: 63 | B3: 69 | C3: 74 | D3: 90 | E3: 93 | F3: 96 | G3: 99 | H3: 102 | I3: 105 | J3: 108 | K3: 111 | L3: 114 | M3: 117 | N3: 120 | O3: 123
A4: 74 | B4: 78 | C4: 81 | D4: 84 | E4: 87
A5: 151 | B5: 156 | C5: 158 | D5: 160
A6: 151 | B6: 162 | C6: 165
A7: 172 | B7: 174 | C7: 175 | D7: 176
A8: 177 | B8: 179 | C8: 180 | D8: 181
A9: 182 | B9: 185 | C9: 187 | D9: 189
A10: 193 | B10: 197 | C10: 237 | D10: 239 | E10: 241 | F10: 243 | G10: 247 | H10: 249 | I10: 251 | J10: 258 | K10: 260 | L10: 262 | M10: 264 | N10: 266
A11: 197 | B11: 200 | C11: 202 | D11: 213 | E11: 215 | F11: 217 | G11: 219 | H11: 221 | I11: 223 | J11: 225 | K11: 227 | L11: 229 | M11: 231 | N11: 233 | O11: 235
A12: 202 | B12: 205 | C12: 207 | D12: 209 | E12: 211
A13: 251 | B13: 254 | C13: 256
A14: 193 | B14: 259 | C14: 276 | D14: 285
A15: 285 | B15: 288 | C15: 292
A16: 269 | B16: 272 | C16: 274
A17: 304 | B17: 307 | C17: 308
A18: 393 | B18: 395 | C18: 396
A19: 393 | B19: 400 | C19: 401 | D19: 402 | E19: 403
A20: 413 | B20: 415 | C20: 416
A21: 417 | B21: 419 | C21: 420 | D21: 421
A22: 424 | B22: 426 | C22: 427 | D22: 428 | E22: 431
A23: 428 | B23: 429 | C23: 430
A24: 434 | B24: 436 | C24: 438 | D24: 439
A25: 436 | B25: 437
A26: 453 | B26: 457 | C26: 459 | D26: 461 | E26: 463 | F26: 465 | G26: 467 | H26: 469 | I26: 471 | J26: 472 | K26: 473 | L26: 475 | M26: 477 | N26: 479 | O26: 481 | P26: 483
A27: 532 | B27: 535 | C27: 537 | D27: 539
